fUST/lending_fUST_20250208
["ID","MTS","AMOUNT","RATE_DAILY","PERIOD"]
[352142934,1738960249657,-1384.6,0.00011232,2]
[352142935,1738960249668,-311.194704,0.00011232,2]
[352142936,1738960249679,-311.194704,0.00011232,2]
[352142937,1738960249689,-856.0,0.00011232,2]
[352142938,1738960249700,-311.194704,0.00011232,2]
[352142939,1738960249711,-311.194704,0.00011232,2]
[352142940,1738960249721,-500.0,0.00011232,2]
[352142941,1738960249731,-327.289372,0.00011232,2]
[352142942,1738960249741,-659.61,0.00011232,2]
[352142943,1738960249751,-1032.58,0.00011232,2]
[352142944,1738960249760,-500.0,0.00011232,2]
[352142945,1738960249772,-500.0,0.00011232,2]
[352142946,1738960249781,-327.289372,0.00011232,2]
[352142947,1738960249792,-294.558072,0.00011232,2]
[352142948,1738960249801,-294.558072,0.00011232,2]
[352142949,1738960249811,-500.0,0.00011232,2]
[352142950,1738960249821,-294.558072,0.00011232,2]
[352142951,1738960249831,-500.0,0.00011232,2]
[352142952,1738960249840,-294.558072,0.00011232,2]
[352142953,1738960249850,-500.0,0.00011232,2]
[352142954,1738960249860,-500.0,0.00011232,2]
[352142955,1738960249870,-194.6,0.00011232,2]
[352142956,1738960249879,-500.0,0.00011232,2]
[352142957,1738960249890,-210.12,0.00011232,2]
[352142958,1738960249899,-991.94,0.00011232,2]
[352142959,1738960249909,-500.0,0.00011232,2]
[352142960,1738960249919,-3723.31,0.00011232,2]
[352142961,1738960249929,-500.0,0.00011232,2]
[352142962,1738960249939,-923.11,0.00011232,2]
[352142963,1738960249949,-500.0,0.00011232,2]
[352142964,1738960249960,-959.57,0.00011232,2]
[352142965,1738960249970,-2934.72,0.00011232,2]
[352142966,1738960249980,-500.0,0.00011232,2]
[352142967,1738960249990,-4185.82,0.00011232,2]
[352142968,1738960249999,-556.29751977,0.00011232,2]
[352142969,1738960250010,-500.0,0.00011232,2]
[352142970,1738960250020,-500.0,0.00011232,2]
[352142971,1738960250029,-461.78918939,0.00011232,2]
[352142972,1738960250038,-2077.98,0.00011232,2]
[352142973,1738960250048,-500.0,0.00011232,2]
[352142974,1738960250058,-506.06,0.00011232,2]
[352142975,1738960250067,-500.0,0.00011232,2]
[352142976,1738960250077,-500.0,0.00011232,2]
[352142977,1738960250086,-500.0,0.00011232,2]
[352142978,1738960250096,-500.0,0.00011232,2]
[352142979,1738960250106,-500.0,0.00011232,2]
[352142980,1738960250115,-4671.94,0.00011232,2]
[352142981,1738960250125,-500.0,0.00011232,2]
[352142982,1738960250135,-531.61,0.00011232,2]
[352142983,1738960250144,-500.0,0.00011232,2]
[352142984,1738960250153,-804.16,0.00011232,2]
[352142985,1738960250163,-905.85,0.00011232,2]
[352142986,1738960250172,-500.0,0.00011232,2]
[352142987,1738960250182,-500.0,0.00011232,2]
[352142988,1738960250191,-522.9,0.00011232,2]
[352142989,1738960250201,-500.0,0.00011232,2]
[352142990,1738960250210,-852.75,0.00011232,2]
[352142991,1738960250220,-500.0,0.00011232,2]
[352142992,1738960250230,-500.0,0.00011232,2]
[352142993,1738960250239,-40495.38,0.00011232,2]
[352142994,1738960250248,-500.0,0.00011232,2]
[352142995,1738960250258,-500.0,0.00011232,2]
[352142996,1738960250266,-500.0,0.00011232,2]
[352142997,1738960250277,-500.0,0.00011232,2]
[352142998,1738960250286,-2047.79,0.00011232,2]
[352142999,1738960250295,-500.0,0.00011232,2]
[352143000,1738960250304,-151.0,0.00011232,2]
[352143001,1738960250314,-151.0,0.00011232,2]
[352143002,1738960250323,-955.07,0.00011232,2]
[352143003,1738960250332,-14753.18,0.00011232,2]
[352143004,1738960250341,-500.0,0.00011232,2]
[352143005,1738960250351,-458.54865058,0.00011232,2]
[352143006,1738960250360,-1918.98,0.00011232,2]
[352143007,1738960250369,-500.0,0.00011232,2]
[352143008,1738960250379,-9949.73,0.00011232,2]
[352143009,1738960250388,-5742.34,0.00011232,2]
[352143010,1738960250397,-500.0,0.00011232,2]
[352143011,1738960250407,-500.0,0.00011232,2]
[352143012,1738960250416,-674.77,0.00011232,2]
[352143013,1738960250425,-532.09,0.00011232,2]
[352143014,1738960250434,-1003.54,0.00011232,2]
[352143015,1738960250444,-500.0,0.00011232,2]
[352143016,1738960250454,-2780.59,0.00011232,2]
[352143017,1738960250463,-1074.61,0.00011232,2]
[352143018,1738960250472,-1352.59,0.00011232,2]
[352143019,1738960250482,-2275.7,0.00011232,2]
[352143020,1738960250491,-2331.36,0.00011232,2]
[352143021,1738960250500,-535.99,0.00011232,2]
[352143022,1738960250509,-206.46029257,0.00011232,2]
[352143023,1738960250520,-500.0,0.00011232,2]
[352143024,1738960250529,-590.48,0.00011232,2]
[352143025,1738960250538,-500.0,0.00011232,2]
[352143026,1738960250547,-500.0,0.00011232,2]
[352143027,1738960250556,-500.0,0.00011232,2]
[352143028,1738960250565,-522.41,0.00011232,2]
[352143029,1738960250575,-511.34359771,0.00011232,2]
[352143030,1738960250584,-250.82977421,0.00011232,2]
[352143031,1738960250593,-500.0,0.00011232,2]
[352143032,1738960250603,-1157.46,0.00011232,2]
[352143033,1738960250613,-500.0,0.00011232,2]
[352143034,1738960250622,-1697.09,0.00011232,2]
[352143035,1738960250631,-500.0,0.00011232,2]
[352143036,1738960250641,-500.0,0.00011232,2]
[352143037,1738960250650,-500.0,0.00011232,2]
[352143038,1738960250660,-500.0,0.00011232,2]
[352143039,1738960250669,-2387.18,0.00011232,2]
[352143040,1738960250679,-500.0,0.00011232,2]
[352143041,1738960250688,-500.0,0.00011232,2]
[352143042,1738960250700,-634.782385,0.00011232,2]
[352143043,1738960250711,-638.67,0.00011232,2]
[352143044,1738960250726,-501.03498578,0.00011232,2]
[352143045,1738960250735,-21013.17,0.00011232,2]
[352143046,1738960250746,-634.782385,0.00011232,2]
[352143047,1738960250757,-500.0,0.00011232,2]
[352143048,1738960250766,-785.07,0.00011232,2]
[352143049,1738960250779,-500.0,0.00011232,2]
[352143050,1738960250788,-500.0,0.00011232,2]
[352143051,1738960250799,-500.0,0.00011232,2]
[352143052,1738960250809,-707.44,0.00011232,2]
[352143053,1738960250818,-998.737411,0.00011232,2]
[352143054,1738960250827,-998.737411,0.00011232,2]
[352143055,1738960250836,-500.0,0.00011232,2]
[352143056,1738960250846,-500.0,0.00011232,2]
[352143057,1738960250855,-998.737411,0.00011232,2]
[352143058,1738960250864,-998.737411,0.00011232,2]
[352143059,1738960250874,-500.0,0.00011232,2]
[352143060,1738960250884,-1549.01,0.00011232,2]
[352143061,1738960250894,-500.0,0.00011232,2]
[352143062,1738960250903,-500.0,0.00011232,2]
[352143063,1738960250912,-790.68,0.00011232,2]
[352143064,1738960250922,-500.0,0.00011232,2]
[352143065,1738960250933,-6637.97,0.00011232,2]
[352143066,1738960250942,-529.04,0.00011232,2]
[352143067,1738960250951,-6751.17,0.00011232,2]
[352143068,1738960250960,-17039.33,0.00011232,2]
[352143069,1738960250969,-500.0,0.00011232,2]
[352143070,1738960250979,-500.0,0.00011232,2]
[352143071,1738960250988,-500.0,0.00011232,2]
[352143072,1738960250997,-500.0,0.00011232,2]
[352143073,1738960251007,-772.16,0.00011232,2]
[352143074,1738960251016,-963.52,0.00011232,2]
[352143075,1738960251029,-4276.81,0.00011232,2]
[352143076,1738960251037,-3067.25,0.00011232,2]
[352143077,1738960251046,-2892.35,0.00011232,2]
[352143078,1738960251055,-580.11,0.00011232,2]
[352143079,1738960251064,-500.0,0.00011232,2]
[352143080,1738960251074,-500.0,0.00011232,2]
[352143081,1738960251083,-824.23,0.00011232,2]
[352143082,1738960251092,-500.0,0.00011232,2]
[352143083,1738960251101,-566.05,0.00011232,2]
[352143084,1738960251110,-500.0,0.00011232,2]
[352143085,1738960251120,-1700.18,0.00011232,2]
[352143086,1738960251129,-500.0,0.00011232,2]
[352143087,1738960251138,-500.0,0.00011232,2]
[352143088,1738960251147,-500.0,0.00011232,2]
[352143089,1738960251157,-500.0,0.00011232,2]
[352143090,1738960251272,-543.93,0.00011232,2]
[352143091,1738960251294,-1584.08,0.00011232,2]
[352143092,1738960251304,-1936.64,0.00011232,2]
[352143093,1738960251313,-512.66205982,0.00011232,2]
[352143094,1738960251322,-500.0,0.00011232,2]
[352143095,1738960251332,-500.0,0.00011232,2]
[352143096,1738960251341,-13104.165365,0.00011233,2]
[352143097,1738960251350,-796.3958152,0.00011255,2]
[352143098,1738960251360,-151.0,0.000113,2]
[352143099,1738960251369,-151.0,0.000113,2]
[352143100,1738960251380,-151.0,0.000113,2]
[352143101,1738960251389,-151.0,0.000113,2]
[352143102,1738960251400,-151.0,0.000113,2]
[352143103,1738960251409,-346.7285072,0.00011368,2]
[352143104,1738960251419,-236.998887,0.00011369,2]
[352143105,1738960251428,-151.0,0.00011369,2]
[352143106,1738960251437,-151.0,0.00011369,2]
[352143107,1738960251446,-151.0,0.00011369,2]
[352143108,1738960251456,-151.0,0.00011369,2]
[352143109,1738960251465,-151.0,0.00011369,2]
[352143110,1738960251474,-546.130717,0.00011369,2]
[352143111,1738960251483,-546.130717,0.00011369,2]
[352143112,1738960251493,-246.931978,0.00011369,2]
[352143113,1738960251503,-299.547069,0.00011369,2]
[352143114,1738960251512,-246.931978,0.00011369,2]
[352143115,1738960251523,-299.547069,0.00011369,2]
[352143116,1738960251532,-151.0,0.00011369,2]
[352143117,1738960251542,-151.0,0.00011369,2]
[352143118,1738960251551,-1709.259368,0.00011369,2]
[352143119,1738960251561,-1709.259368,0.00011369,2]
[352143120,1738960251571,-153.126158,0.00011369,2]
[352143121,1738960251580,-153.126158,0.00011369,2]
[352143122,1738960251589,-151.0,0.00011369,2]
[352143123,1738960251599,-230.257706,0.00011369,2]
[352143124,1738960251609,-151.0,0.00011369,2]
[352143125,1738960251618,-151.0,0.00011369,2]
[352143126,1738960251627,-151.0,0.00011369,2]
[352143127,1738960251636,-1503.343611,0.00011369,2]
[352143128,1738960251646,-1503.343611,0.00011369,2]
[352143129,1738960251655,-151.0,0.00011369,2]
[352143130,1738960251664,-299.816089,0.00011369,2]
[352143131,1738960251674,-172.101189,0.00011369,2]
[352143132,1738960251683,-209.134824,0.00011369,2]
[352143133,1738960251692,-151.0,0.00011369,2]
[352143134,1738960251702,-209.134824,0.00011369,2]
[352143135,1738960251711,-151.18142,0.00011369,2]
[352143136,1738960251724,-209.134824,0.00011369,2]
[352143137,1738960251733,-209.134824,0.00011369,2]
[352143138,1738960251743,-500.0,0.00011369,2]
[352143139,1738960251752,-271.01057,0.00011369,2]
[352143140,1738960251761,-271.01057,0.00011369,2]
[352143141,1738960251771,-271.01057,0.00011369,2]
[352143142,1738960251780,-271.01057,0.00011369,2]
[352143143,1738960251791,-537.0,0.00011369,2]
[352143144,1738960251801,-500.0,0.00011369,2]
[352143145,1738960251811,-1975.0,0.00011369,2]
[352143146,1738960251821,-792.177373,0.00011369,2]
[352143147,1738960251830,-792.177373,0.00011369,2]
[352143148,1738960251840,-500.0,0.00011369,2]
[352143149,1738960251849,-227.620517,0.00011369,2]
[352143150,1738960251863,-227.620517,0.00011369,2]
[352143151,1738960251872,-792.177373,0.00011369,2]
[352143152,1738960251882,-792.177373,0.00011369,2]
[352143153,1738960251891,-227.620517,0.00011369,2]
[352143154,1738960251901,-227.620517,0.00011369,2]
[352143155,1738960251911,-500.0,0.00011369,2]
[352143156,1738960251921,-2296.0,0.00011369,2]
[352143157,1738960251930,-500.0,0.00011369,2]
[352143158,1738960251940,-500.0,0.00011369,2]
[352143159,1738960251949,-500.0,0.00011369,2]
[352143160,1738960251959,-500.0,0.00011369,2]
[352143161,1738960251968,-500.0,0.00011369,2]
[352143162,1738960251978,-500.0,0.00011369,2]
[352143163,1738960251987,-500.0,0.00011369,2]
[352143164,1738960251997,-500.0,0.00011369,2]
[352143165,1738960252007,-500.0,0.00011369,2]
[352143166,1738960252016,-500.0,0.00011369,2]
[352143167,1738960252028,-500.0,0.00011369,2]
[352143168,1738960252038,-500.0,0.00011369,2]
[352143169,1738960252047,-201.88561725,0.00011369,2]
[352143170,1738960252057,-500.0,0.00011369,2]
[352143171,1738960252066,-156.65,0.00011369,2]
[352143172,1738960252076,-500.0,0.00011369,2]
[352143173,1738960252085,-500.0,0.00011369,2]
[352143174,1738960252095,-500.0,0.00011369,2]
[352143175,1738960252104,-500.0,0.00011369,2]
[352143176,1738960252114,-236.288648,0.00011369,2]
[352143177,1738960252123,-236.288648,0.00011369,2]
[352143178,1738960252132,-236.288648,0.00011369,2]
[352143179,1738960252142,-236.288648,0.00011369,2]
[352143180,1738960252151,-500.0,0.00011369,2]
[352143181,1738960252161,-500.0,0.00011369,2]
[352143182,1738960252171,-500.0,0.00011369,2]
[352143183,1738960252180,-500.0,0.00011369,2]
[352143184,1738960252190,-500.0,0.00011369,2]
[352143185,1738960252200,-1052.962025,0.00011369,2]
[352143186,1738960252209,-1052.962025,0.00011369,2]
[352143187,1738960252218,-500.0,0.00011369,2]
[352143188,1738960252228,-500.0,0.00011369,2]
[352143189,1738960252238,-811.02,0.00011369,2]
[352143190,1738960252248,-500.0,0.00011369,2]
[352143191,1738960252257,-550.08500919,0.00011369,2]
[352143192,1738960252266,-500.0,0.00011369,2]
[352143193,1738960252277,-500.0,0.00011369,2]
[352143194,1738960252286,-151.0,0.00011369,2]
[352143195,1738960252296,-500.0,0.00011369,2]
[352143196,1738960252305,-500.0,0.00011369,2]
[352143197,1738960252315,-246.722797,0.00011369,2]
[352143198,1738960252324,-500.0,0.00011369,2]
[352143199,1738960252333,-500.0,0.00011369,2]
[352143200,1738960252342,-255.08512033,0.00011369,2]
[352143201,1738960252352,-500.0,0.00011369,2]
[352143202,1738960252362,-500.0,0.00011369,2]
[352143203,1738960252371,-234.880913,0.00011369,2]
[352143204,1738960252381,-234.880913,0.00011369,2]
[352143205,1738960252390,-234.880913,0.00011369,2]
[352143206,1738960252399,-234.880913,0.00011369,2]
[352143207,1738960252408,-701.95,0.00011369,2]
[352143208,1738960252418,-500.0,0.00011369,2]
[352143209,1738960252427,-500.0,0.00011369,2]
[352143210,1738960252436,-285.073411,0.00011369,2]
[352143211,1738960252446,-285.073411,0.00011369,2]
[352143212,1738960252455,-285.073411,0.00011369,2]
[352143213,1738960252464,-285.073411,0.00011369,2]
[352143214,1738960252473,-500.0,0.00011369,2]
[352143215,1738960252482,-500.0,0.00011369,2]
[352143216,1738960252491,-456.16193903,0.00011369,2]
[352143217,1738960252501,-500.0,0.00011369,2]
[352143218,1738960252510,-500.0,0.00011369,2]
[352143219,1738960252519,-505.08567262,0.00011369,2]
[352143220,1738960252530,-511.23,0.00011369,2]
[352143221,1738960252539,-500.0,0.00011369,2]
[352143222,1738960252548,-500.0,0.00011369,2]
[352143223,1738960252558,-500.0,0.00011369,2]
[352143224,1738960252567,-500.0,0.00011369,2]
[352143225,1738960252576,-500.0,0.00011369,2]
[352143226,1738960252585,-678.44,0.00011369,2]
[352143227,1738960252596,-500.0,0.00011369,2]
[352143228,1738960252606,-472.09357,0.00011369,2]
[352143229,1738960252615,-472.09357,0.00011369,2]
[352143230,1738960252625,-500.0,0.00011369,2]
[352143231,1738960252634,-960.69,0.00011369,2]
[352143232,1738960252643,-472.09357,0.00011369,2]
[352143233,1738960252653,-472.09357,0.00011369,2]
[352143234,1738960252663,-1079.710757,0.00011369,2]
[352143235,1738960252672,-1079.710757,0.00011369,2]
[352143236,1738960252681,-519.86851617,0.00011369,2]
[352143237,1738960252691,-1079.710757,0.00011369,2]
[352143238,1738960252701,-1079.710757,0.00011369,2]
[352143239,1738960252714,-524.23,0.00011369,2]
[352143240,1738960252724,-1030.76,0.00011369,2]
[352143241,1738960252733,-500.0,0.00011369,2]
[352143242,1738960252743,-194.221295,0.00011369,2]
[352143243,1738960252754,-194.221295,0.00011369,2]
[352143244,1738960252763,-1292.13,0.00011369,2]
[352143245,1738960252773,-194.221295,0.00011369,2]
[352143246,1738960252782,-734.99,0.00011369,2]
[352143247,1738960252792,-194.221295,0.00011369,2]
[352143248,1738960252802,-500.0,0.00011369,2]
[352143249,1738960252812,-500.0,0.00011369,2]
[352143250,1738960252821,-500.0,0.00011369,2]
[352143251,1738960252830,-992.891093,0.00011369,2]
[352143252,1738960252839,-992.891093,0.00011369,2]
[352143253,1738960252849,-992.891093,0.00011369,2]
[352143254,1738960252858,-992.891093,0.00011369,2]
[352143255,1738960252868,-645.1,0.00011369,2]
[352143256,1738960252877,-500.0,0.00011369,2]
[352143257,1738960252887,-424.450481,0.00011369,2]
[352143258,1738960252898,-424.450481,0.00011369,2]
[352143259,1738960252909,-424.450481,0.00011369,2]
[352143260,1738960252918,-424.450481,0.00011369,2]
[352143261,1738960252928,-500.0,0.00011369,2]
[352143262,1738960252937,-500.0,0.00011369,2]
[352143263,1738960252946,-1350.97,0.00011369,2]
[352143264,1738960252956,-500.0,0.00011369,2]
[352143265,1738960252965,-816.11,0.00011369,2]
[352143266,1738960252975,-500.0,0.00011369,2]
[352143267,1738960252985,-500.0,0.00011369,2]
[352143268,1738960252995,-881.12,0.00011369,2]
[352143269,1738960253005,-500.0,0.00011369,2]
[352143270,1738960253015,-597.73,0.00011369,2]
[352143271,1738960253024,-829.9,0.00011369,2]
[352143272,1738960253034,-300.964955,0.00011369,2]
[352143273,1738960253043,-300.964955,0.00011369,2]
[352143274,1738960253053,-300.964955,0.00011369,2]
[352143275,1738960253062,-500.0,0.00011369,2]
[352143276,1738960253072,-300.964955,0.00011369,2]
[352143277,1738960253081,-500.0,0.00011369,2]
[352143278,1738960253091,-151.0,0.00011369,2]
[352143279,1738960253100,-151.0,0.00011369,2]
[352143280,1738960253109,-500.0,0.00011369,2]
[352143281,1738960253119,-500.0,0.00011369,2]
[352143282,1738960253128,-850.91,0.00011369,2]
[352143283,1738960253138,-388.89,0.00011369,2]
[352143284,1738960253148,-500.0,0.00011369,2]
[352143285,1738960253159,-408.356279,0.00011369,2]
[352143286,1738960253170,-408.356279,0.00011369,2]
[352143287,1738960253180,-318.53,0.00011369,2]
[352143288,1738960253190,-408.356279,0.00011369,2]
[352143289,1738960253200,-408.356279,0.00011369,2]
[352143290,1738960253210,-500.0,0.00011369,2]
[352143291,1738960253220,-500.0,0.00011369,2]
[352143292,1738960253230,-500.0,0.00011369,2]
[352143293,1738960253239,-500.0,0.00011369,2]
[352143294,1738960253249,-1384.6,0.00011369,2]
[352143295,1738960253258,-311.194704,0.00011369,2]
[352143296,1738960253268,-311.194704,0.00011369,2]
[352143297,1738960253278,-856.0,0.00011369,2]
[352143298,1738960253287,-311.194704,0.00011369,2]
[352143299,1738960253296,-311.194704,0.00011369,2]
[352143300,1738960253305,-659.61,0.00011369,2]
[352143301,1738960253315,-327.289372,0.00011369,2]
[352143302,1738960253325,-327.289372,0.00011369,2]
[352143303,1738960253334,-1032.58,0.00011369,2]
[352143304,1738960253343,-500.0,0.00011369,2]
[352143305,1738960253353,-500.0,0.00011369,2]
[352143306,1738960253363,-327.289372,0.00011369,2]
[352143307,1738960253373,-327.289372,0.00011369,2]
[352143308,1738960253382,-294.558072,0.00011369,2]
[352143309,1738960253392,-294.558072,0.00011369,2]
[352143310,1738960253402,-500.0,0.00011369,2]
[352143311,1738960253412,-500.0,0.00011369,2]
[352143312,1738960253422,-294.558072,0.00011369,2]
[352143313,1738960253431,-294.558072,0.00011369,2]
[352143314,1738960253443,-220.27,0.00011369,2]
[352143315,1738960253452,-500.0,0.00011369,2]
[352143316,1738960253462,-991.94,0.00011369,2]
[352143317,1738960253471,-500.0,0.00011369,2]
[352143318,1738960253594,-3723.31,0.00011369,2]
[352143319,1738960253605,-500.0,0.00011369,2]
[352143320,1738960253615,-923.11,0.00011369,2]
[352143321,1738960253624,-500.0,0.00011369,2]
[352143322,1738960253633,-959.57,0.00011369,2]
[352143323,1738960253642,-2934.72,0.00011369,2]
[352143324,1738960253652,-500.0,0.00011369,2]
[352143325,1738960253661,-4185.82,0.00011369,2]
[352143326,1738960253671,-500.0,0.00011369,2]
[352143327,1738960253680,-1467.67292492,0.00011369,2]
[352143328,1738960254054,-500.0,0.00011232,2]
[352143329,1738960254064,-397.4226915,0.00011369,2]
[352143330,1738960254075,-212.88438358,0.00011369,2]
[352143331,1738960254085,-500.0,0.00011369,2]
[352143332,1738960254095,-506.06,0.00011369,2]
[352143333,1738960254104,-500.0,0.00011369,2]
[352143334,1738960254114,-500.0,0.00011369,2]
[352143335,1738960254123,-282.7365351,0.00011369,2]
[352143336,1738960254384,-500.0,0.00010958,2]
[352143337,1738960254394,-500.0,0.00010958,2]
[352143338,1738960254403,-2896.49,0.00010959,2]
[352143339,1738960254413,-843.82,0.00011095,2]
[352143340,1738960254422,-500.0,0.00011095,2]
[352143341,1738960254431,-500.0,0.00011095,2]
[352143342,1738960254440,-843.82,0.00011232,2]
[352143343,1738960254449,-169.97,0.00011232,2]
[352143344,1738960254458,-500.0,0.00011232,2]
[352143345,1738960254467,-217.2634649,0.00011369,2]
[352143346,1738960254476,-500.0,0.00011369,2]
[352143347,1738960254486,-500.0,0.00011369,2]
[352143348,1738960254495,-4671.94,0.00011369,2]
[352143349,1738960254504,-58.8178601,0.00011369,2]
[352143350,1738960254831,-427.6874658,0.00010958,2]
[352143351,1738960254843,-72.3125342,0.00010958,2]
[352143352,1738960254852,-500.0,0.00010958,2]
[352143353,1738960254861,-353.6374628,0.00010958,2]
[352143354,1738960254872,-146.3625372,0.00010958,2]
[352143355,1738960254881,-500.0,0.00011095,2]
[352143356,1738960254890,-4397.98524057,0.00011132,2]
[352143357,1738960254899,-441.1821399,0.00011369,2]
[352143358,1738960254908,-531.61,0.00011369,2]
[352143359,1738960254917,-500.0,0.00011369,2]
[352143360,1738960254926,-804.16,0.00011369,2]
[352143361,1738960254935,-905.85,0.00011369,2]
[352143362,1738960254945,-500.0,0.00011369,2]
[352143363,1738960254954,-500.0,0.00011369,2]
[352143364,1738960254963,-522.9,0.00011369,2]
[352143365,1738960254972,-500.0,0.00011369,2]
[352143366,1738960254981,-852.75,0.00011369,2]
[352143367,1738960254989,-500.0,0.00011369,2]
[352143368,1738960254998,-500.0,0.00011369,2]
[352143369,1738960255008,-2333.80008233,0.00011369,2]
[352143370,1738960255024,-995.67538918,0.00011369,2]
[352143371,1738960255034,-1200.0,0.00011369,2]
[352143372,1738960255046,-10080.59840914,0.00011369,2]
[352143373,1738960255057,-1308.82834252,0.00011369,2]
[352143374,1738960255173,-962.55,0.00011369,2]
[352143375,1738960255184,-11900.0,0.00011369,2]
[352143426,1738961432693,-261.8,9.131e-05,2]
[352143427,1738961432756,-3828.71012434,9.131e-05,2]
[352143428,1738961432767,-374.86910018,9.131e-05,2]
[352143429,1738961432816,-534.62077548,9.131e-05,2]
[352143430,1738961432825,-300.0,9.315e-05,2]
[352143431,1738961432834,-120.74634558,9.316e-05,2]
[352143746,1738961438723,-1000.0,9.04e-05,2]
[352143754,1738961438787,-2452.47845339,9.04e-05,2]
[352143756,1738961438801,-948.74651632,9.04e-05,2]
[352143759,1738961438813,-598.77503029,9.04e-05,2]
[352143761,1738961438823,-379.25365442,9.316e-05,2]
[352143763,1738961438833,-363.61431767,9.316e-05,2]
[352143765,1738961438842,-500.0,9.316e-05,2]
[352143767,1738961438852,-262.21254686,9.316e-05,2]
[352143769,1738961438864,-237.78745314,9.316e-05,2]
[352143771,1738961438873,-500.0,9.316e-05,2]
[352143773,1738961438882,-500.0,9.316e-05,2]
[352143775,1738961438892,-500.0,9.316e-05,2]
[352143777,1738961438902,-500.0,9.316e-05,2]
[352143780,1738961438911,-246.36195994,9.316e-05,2]
[352143782,1738961438924,-253.63804006,9.316e-05,2]
[352143784,1738961438935,-246.36195994,9.316e-05,2]
[352143787,1738961438946,-253.63804006,9.316e-05,2]
[352143791,1738961438956,-500.0,9.316e-05,2]
[352143793,1738961438967,-500.0,9.316e-05,2]
[352143795,1738961438977,-500.0,9.316e-05,2]
[352143797,1738961438987,-593.02083657,9.316e-05,2]
[352143799,1738961438996,-609.88848445,9.316e-05,2]
[352143801,1738961439006,-500.0,9.316e-05,2]
[352143803,1738961439015,-500.0,9.316e-05,2]
[352143805,1738961439024,-500.0,9.316e-05,2]
[352143807,1738961439034,-500.0,9.316e-05,2]
[352143809,1738961439046,-500.0,9.316e-05,2]
[352143811,1738961439055,-500.0,9.316e-05,2]
[352143813,1738961439065,-500.0,9.316e-05,2]
[352143815,1738961439074,-288.11342628,9.316e-05,2]
[352143816,1738961439083,-1194.26420248,9.317e-05,2]
[352143819,1738961439095,-3815.795972,9.317e-05,2]
[352143821,1738961439107,-9601.6,9.317e-05,2]
[352143823,1738961439121,-10288.33982552,9.317e-05,2]
[352143825,1738961439130,-250.0,9.346e-05,2]
[352143827,1738961439139,-4400.0,9.78e-05,2]
[352143829,1738961439150,-157.909657,9.908e-05,2]
[352143831,1738961439160,-157.909657,9.914e-05,2]
[352143857,1738961439398,-157.909657,9.921e-05,2]
[352143859,1738961439408,-157.909657,9.927e-05,2]
[352143861,1738961439417,-157.909657,9.933e-05,2]
[352143863,1738961439427,-157.909657,9.939e-05,2]
[352143865,1738961439436,-157.909657,9.945e-05,2]
[352143867,1738961439445,-157.909657,9.952e-05,2]
[352143869,1738961439455,-157.909657,9.958e-05,2]
[352143871,1738961439465,-420.0,0.00010247,2]
[352143873,1738961439475,-151.098,0.000108,2]
[352143876,1738961439485,-188.13756662,0.00010858,2]
[352143878,1738961439494,-689.19507197,0.00010858,2]
[352143880,1738961439503,-188.13756662,0.00010927,2]
[352143882,1738961439513,-1200.5186084,0.00010931,5]
[352143884,1738961439522,-500.0,0.00010957,2]